[Event "NJSK 2023 Jeugd B"]
[Site "Almelo, Netherlands"]
[Date "2023.05.06"]
[Round "7.2"]
[White "Labruyere, Roger"]
[Black "Bakija, Alan"]
[Result "1-0"]
[TimeControl "90min/40moves + 30min + 30sec/move"]
[WhiteElo "2160"]
[BlackElo "1999"]

1. e4 {[%clk 01:30:59]} c5 {[%clk 01:30:55]} {[%emt 00:00:05]} 2. Nf3 {[%clk
01:31:20]} {[%emt 00:00:09]} g6 {[%clk 01:31:19]} {[%emt 00:00:06]} 3. c3
{[%clk 01:30:45]} {[%emt 00:01:05]} Nf6 {[%clk 01:31:45]} {[%emt 00:00:04]} 4.
e5 {[%clk 01:30:50]} {[%emt 00:00:25]} Nd5 {[%clk 01:32:10]} {[%emt 00:00:05]}
5. Bc4 {[%clk 01:30:47]} {[%emt 00:00:33]} Nb6 {[%clk 01:32:02]} {[%emt
00:00:37]} 6. Bb3 {[%clk 01:31:11]} {[%emt 00:00:07]} Bg7 {[%clk 01:31:39]}
{[%emt 00:00:53]} 7. O-O {[%clk 01:31:00]} {[%emt 00:00:41]} O-O {[%clk
01:31:53]} {[%emt 00:00:16]} 8. d4 {[%clk 01:31:04]} {[%emt 00:00:27]} cxd4
{[%clk 01:32:15]} {[%emt 00:00:09]} 9. cxd4 {[%clk 01:31:27]} {[%emt 00:00:07]}
Nc6 {[%clk 01:31:36]} {[%emt 00:01:09]} 10. Qe2 {[%clk 01:26:48]} {[%emt
00:05:08]} Na5 {[%clk 01:15:00]} {[%emt 00:17:06]} 11. Nc3 {[%clk 01:24:39]}
{[%emt 00:02:39]} Nxb3 {[%clk 01:13:26]} {[%emt 00:02:04]} 12. axb3 {[%clk
01:25:08]} {[%emt 00:00:01]} d6 {[%clk 01:10:22]} {[%emt 00:03:35]} 13. Rd1
{[%clk 01:24:08]} {[%emt 00:01:29]} Bg4 {[%clk 01:03:13]} {[%emt 00:07:39]} 14.
Bf4 {[%clk 01:13:28]} {[%emt 00:11:10]} dxe5 {[%clk 00:57:37]} {[%emt
00:06:06]} 15. dxe5 {[%clk 01:12:16]} {[%emt 00:01:42]} Qc8 {[%clk 00:58:00]}
{[%emt 00:00:07]} 16. h3 {[%clk 01:06:11]} {[%emt 00:06:35]} Bxf3 {[%clk
00:57:04]} {[%emt 00:01:26]} 17. Qxf3 {[%clk 01:06:29]} {[%emt 00:00:12]} Qf5
{[%clk 00:54:47]} {[%emt 00:02:47]} 18. Rac1 {[%clk 00:40:55]} {[%emt
00:26:04]} Bxe5 {[%clk 00:49:39]} {[%emt 00:05:37]} 19. Bxe5 {[%clk 00:41:19]}
{[%emt 00:00:07]} Qxe5 {[%clk 00:50:05]} {[%emt 00:00:04]} 20. Qxb7 {[%clk
00:41:39]} {[%emt 00:00:10]} Qe6 {[%clk 00:45:25]} {[%emt 00:05:10]} 21. b4
{[%clk 00:36:01]} {[%emt 00:06:08]} Rfb8 {[%clk 00:43:01]} {[%emt 00:02:54]} 22.
Qf3 {[%clk 00:34:14]} {[%emt 00:02:17]} Qb3 {[%clk 00:37:24]} {[%emt 00:06:07]}
23. Qe4 {[%clk 00:19:32]} {[%emt 00:15:12]} Qxb2 {[%clk 00:28:39]} {[%emt
00:09:15]} 24. Nb5 {[%clk 00:17:05]} {[%emt 00:02:57]} Rd8 {[%clk 00:21:08]}
{[%emt 00:08:01]} 25. Nc7 {[%clk 00:10:59]} {[%emt 00:06:36]} Rac8 {[%clk
00:20:55]} {[%emt 00:00:43]} 26. Qxe7 {[%clk 00:10:57]} {[%emt 00:00:33]} Rd4
{[%clk 00:09:46]} {[%emt 00:11:37]} 27. Rb1 {[%clk 00:10:08]} {[%emt 00:01:20]}
Qc3 {[%clk 00:05:57]} {[%emt 00:04:18]} 28. Nb5 {[%clk 00:10:15]} {[%emt
00:00:24]} Rxd1+ {[%clk 00:06:15]} {[%emt 00:00:12]} 29. Rxd1 {[%clk 00:10:44]}
{[%emt 00:00:01]} Qc2 {[%clk 00:03:46]} {[%emt 00:02:59]} 30. Rd8+ {[%clk
00:10:54]} {[%emt 00:00:20]} Rxd8 {[%clk 00:04:09]} {[%emt 00:00:08]} 31. Qxd8+
{[%clk 00:11:20]} {[%emt 00:00:03]} Kg7 {[%clk 00:04:35]} {[%emt 00:00:04]} 32.
Qd4+ {[%clk 00:11:46]} {[%emt 00:00:04]} Kg8 {[%clk 00:04:32]} {[%emt
00:00:32]} 33. Nd6 {[%clk 00:07:01]} {[%emt 00:05:16]} Qc1+ {[%clk 00:03:58]}
{[%emt 00:01:04]} 34. Kh2 {[%clk 00:07:30]} {[%emt 00:00:01]} Qc7 {[%clk
00:03:57]} {[%emt 00:00:30]} 35. g3 {[%clk 00:07:53]} {[%emt 00:00:08]} Qd7
{[%clk 00:02:19]} {[%emt 00:02:06]} 36. Qe5 {[%clk 00:07:44]} {[%emt 00:00:40]}
Qe6 {[%clk 00:01:46]} {[%emt 00:01:02]} 37. Qc5 {[%clk 00:06:56]} {[%emt
00:01:19]} Qe7 {[%clk 00:01:36]} {[%emt 00:00:40]} 38. b5 {[%clk 00:04:09]}
{[%emt 00:03:18]} h6 {[%clk 00:01:01]} {[%emt 00:01:05]} 39. Qc6 {[%clk
00:03:10]} {[%emt 00:01:29]} Qf6 {[%clk 00:00:47]} {[%emt 00:00:39]} 40. Kg2
{[%clk 00:02:20]} {[%emt 00:01:25]} Qe7 {[%clk 00:00:40]} {[%emt 00:00:36]} 41.
h4 {[%clk 00:29:57]} {[%emt 00:02:53]} h5 {[%clk 00:28:03]} {[%emt 00:03:07]}
42. Ne8 {[%clk 00:25:34]} {[%emt 00:04:53]} Kf8 {[%clk 00:22:05]} {[%emt
00:06:29]} 43. Nc7 {[%clk 00:25:25]} {[%emt 00:00:39]} Kg7 {[%clk 00:21:48]}
{[%emt 00:00:46]} 44. Kh2 {[%clk 00:22:10]} {[%emt 00:03:45]} Kh7 {[%clk
00:17:10]} {[%emt 00:05:09]} 45. Na6 {[%clk 00:16:35]} {[%emt 00:06:04]} Kg7
{[%clk 00:16:41]} {[%emt 00:00:59]} 46. Qc3+ {[%clk 00:15:30]} {[%emt
00:01:36]} Kg8 {[%clk 00:14:30]} {[%emt 00:02:39]} 47. Nb4 {[%clk 00:14:01]}
{[%emt 00:02:01]} Qe2 {[%clk 00:04:37]} {[%emt 00:10:23]} 48. Nd3 {[%clk
00:14:20]} {[%emt 00:00:10]} Qe7 {[%clk 00:04:33]} {[%emt 00:00:35]} 49. Ne5
{[%clk 00:13:09]} {[%emt 00:01:41]} Qf6 {[%clk 00:04:06]} {[%emt 00:00:55]} 50.
Qe3 {[%clk 00:12:47]} {[%emt 00:00:53]} Qe7 {[%clk 00:04:02]} {[%emt 00:00:30]}
51. Nc6 {[%clk 00:06:45]} {[%emt 00:06:37]} Qxe3 {[%clk 00:02:27]} {[%emt
00:02:05]} 52. fxe3 {[%clk 00:07:14]} {[%emt 00:00:02]} Nc8 {[%clk 00:02:56]}
53. Kg2 {[%clk 00:07:36]} {[%emt 00:00:07]} Kf8 {[%clk 00:03:22]} {[%emt
00:00:05]} 54. Kf3 {[%clk 00:07:58]} {[%emt 00:00:08]} Ke8 {[%clk 00:03:45]}
{[%emt 00:00:06]} 55. Kf4 {[%clk 00:08:13]} {[%emt 00:00:15]} f6 {[%clk
00:03:42]} {[%emt 00:00:34]} 56. e4 {[%clk 00:08:31]} {[%emt 00:00:12]} Kd7
{[%clk 00:03:04]} {[%emt 00:01:08]} 57. e5 {[%clk 00:07:29]} {[%emt 00:01:33]}
Ke6 {[%clk 00:03:15]} {[%emt 00:00:17]} 58. Nd4+ {[%clk 00:07:12]} {[%emt
00:00:48]} Kf7 {[%clk 00:02:20]} {[%emt 00:01:24]} 59. exf6 {[%clk 00:07:18]}
{[%emt 00:00:25]} Kxf6 {[%clk 00:02:46]} {[%emt 00:00:04]} 60. Nc6 {[%clk
00:07:43]} {[%emt 00:00:04]} Ke6 {[%clk 00:02:29]} {[%emt 00:00:48]} 61. Kg5
{[%clk 00:07:50]} {[%emt 00:00:23]} Kf7 {[%clk 00:02:55]} {[%emt 00:00:04]} 62.
Ne5+ {[%clk 00:07:35]} {[%emt 00:00:45]} Kg7 {[%clk 00:03:18]} {[%emt
00:00:07]} 63. Nxg6 {[%clk 00:07:05]} {[%emt 00:01:00]} Nd6 {[%clk 00:03:41]}
{[%emt 00:00:08]} 64. Ne5 {[%clk 00:07:00]} {[%emt 00:00:34]} Nxb5 {[%clk
00:03:51]} {[%emt 00:00:20]} 65. Nc6 {[%clk 00:06:32]} {[%emt 00:00:58]} a6
{[%clk 00:03:38]} {[%emt 00:00:44]} 66. Kxh5 {[%clk 00:06:56]} {[%emt
00:00:04]} Nd6 {[%clk 00:04:04]} {[%emt 00:00:05]} 67. Na5 {[%clk 00:06:54]}
{[%emt 00:00:32]} Ne4 {[%clk 00:03:20]} {[%emt 00:01:14]} 68. g4 {[%clk
00:07:11]} {[%emt 00:00:13]} Nf6+ {[%clk 00:02:25]} {[%emt 00:01:25]} 69. Kg5
{[%clk 00:07:36]} {[%emt 00:00:05]} Nh7+ {[%clk 00:02:43]} {[%emt 00:00:12]} 70.
Kf5 {[%clk 00:07:55]} {[%emt 00:00:11]} Nf6 {[%clk 00:02:54]} {[%emt 00:00:18]}
71. g5 {[%clk 00:05:35]} {[%emt 00:02:51]} Nh5 {[%clk 00:02:17]} {[%emt
00:01:07]} 72. Kg4 {[%clk 00:05:59]} {[%emt 00:00:06]} Kg6 {[%clk 00:02:44]}
{[%emt 00:00:03]} 73. Nc4 {[%clk 00:06:21]} {[%emt 00:00:06]} Ng7 {[%clk
00:02:56]} {[%emt 00:00:19]} 74. h5+ {[%clk 00:06:29]} {[%emt 00:00:22]} Nxh5
{[%clk 00:00:33]} {[%emt 00:02:54]} 75. Ne5+ {[%clk 00:06:54]} {[%emt
00:00:06]} Kg7 {[%clk 00:01:00]} {[%emt 00:00:02]} 76. Kxh5 {[%clk 00:07:17]}
{[%emt 00:00:06]} a5 {[%clk 00:01:28]} {[%emt 00:00:03]} 77. g6 {[%clk
00:07:30]} {[%emt 00:00:17]} a4 {[%clk 00:01:55]} {[%emt 00:00:03]} 78. Nc4
{[%clk 00:07:54]} {[%emt 00:00:06]} Kg8 {[%clk 00:02:22]} {[%emt 00:00:04]} 79.
Kh6 {[%clk 00:08:14]} {[%emt 00:00:09]} Kh8 {[%clk 00:02:39]} {[%emt 00:00:12]}
80. g7+ {[%clk 00:08:40]} {[%emt 00:00:05]} Kg8 {[%clk 00:03:05]} {[%emt
00:00:04]} 81. Na3 {[%clk 00:08:53]} {[%emt 00:00:17]} 1-0

[Event "NJSK 2023 Jeugd B"]
[Site "Almelo, Netherlands"]
[Date "2023.05.06"]
[Round "7.3"]
[White "Van Foreest, Nanne"]
[Black "Van Hesselingen, Guido"]
[Result "1/2-1/2"]
[TimeControl "90min/40moves + 30min + 30sec/move"]
[WhiteElo "1893"]
[BlackElo "1924"]

1. e4 {[%clk 01:30:58]} {[%emt 00:00:02]} e5 {[%clk 01:30:55]} {[%emt
00:00:05]} 2. Nf3 {[%clk 01:31:24]} {[%emt 00:00:04]} Nc6 {[%clk 01:31:21]}
{[%emt 00:00:04]} 3. Nc3 {[%clk 01:31:52]} {[%emt 00:00:02]} Nf6 {[%clk
01:31:43]} {[%emt 00:00:08]} 4. d4 {[%clk 01:32:19]} {[%emt 00:00:04]} exd4
{[%clk 01:32:06]} {[%emt 00:00:05]} 5. Nxd4 {[%clk 01:32:46]} {[%emt 00:00:03]}
Bb4 {[%clk 01:32:15]} {[%emt 00:00:22]} 6. Nxc6 {[%clk 01:33:10]} {[%emt
00:00:07]} bxc6 {[%clk 01:31:28]} {[%emt 00:01:16]} 7. Bd3 {[%clk 01:33:33]}
{[%emt 00:00:07]} d5 {[%clk 01:30:14]} {[%emt 00:01:43]} 8. exd5 {[%clk
01:34:00]} {[%emt 00:00:05]} cxd5 {[%clk 01:30:23]} {[%emt 00:00:20]} 9. O-O
{[%clk 01:34:26]} {[%emt 00:00:04]} O-O {[%clk 01:27:18]} {[%emt 00:03:35]} 10.
Bg5 {[%clk 01:34:50]} {[%emt 00:00:07]} c6 {[%clk 01:20:53]} {[%emt 00:06:54]}
11. h3 {[%clk 01:32:34]} {[%emt 00:02:46]} a5 {[%clk 01:12:38]} {[%emt
00:08:45]} 12. Qf3 {[%clk 01:28:00]} {[%emt 00:05:04]} Ba6 {[%clk 01:07:12]}
{[%emt 00:05:56]} 13. Ne2 {[%clk 01:23:14]} {[%emt 00:05:16]} Bxd3 {[%clk
00:56:20]} {[%emt 00:11:22]} 14. Qxd3 {[%clk 01:23:42]} {[%emt 00:00:02]} Qd6
{[%clk 00:52:44]} {[%emt 00:04:06]} 15. c3 {[%clk 01:12:47]} {[%emt 00:11:25]}
Bc5 {[%clk 00:52:45]} {[%emt 00:00:30]} 16. Bxf6 {[%clk 01:13:01]} {[%emt
00:00:16]} Qxf6 {[%clk 00:52:59]} {[%emt 00:00:15]} 17. Nd4 {[%clk 01:13:28]}
{[%emt 00:00:03]} Rfe8 {[%clk 00:46:32]} {[%emt 00:06:57]} 18. Rfe1 {[%clk
01:11:18]} {[%emt 00:02:40]} g6 {[%clk 00:45:00]} {[%emt 00:02:02]} 19. Rad1
{[%clk 01:11:09]} {[%emt 00:00:39]} Rxe1+ {[%clk 00:37:51]} {[%emt 00:07:39]}
20. Rxe1 {[%clk 01:11:39]} {[%emt 00:00:01]} Bxd4 {[%clk 00:35:53]} {[%emt
00:02:27]} 21. cxd4 {[%clk 01:11:31]} {[%emt 00:00:38]} Rb8 {[%clk 00:35:38]}
{[%emt 00:00:46]} 22. Qc3 {[%clk 01:05:13]} {[%emt 00:06:48]} Rb4 {[%clk
00:31:57]} {[%emt 00:04:10]} 23. Re8+ {[%clk 01:04:09]} {[%emt 00:01:34]} Kg7
{[%clk 00:32:17]} {[%emt 00:00:10]} 24. Qc5 {[%clk 01:04:37]} {[%emt 00:00:02]}
Kh6 {[%clk 00:20:15]} {[%emt 00:12:29]} 25. Qf8+ {[%clk 01:02:06]} {[%emt
00:03:04]} Qg7 {[%clk 00:20:36]} {[%emt 00:00:09]} 26. Qe7 {[%clk 01:01:37]}
{[%emt 00:00:59]} Qxd4 {[%clk 00:19:24]} {[%emt 00:01:42]} 27. Qxf7 {[%clk
01:01:42]} {[%emt 00:00:25]} Qf4 {[%clk 00:19:32]} {[%emt 00:00:22]} 28. Qxf4+
{[%clk 00:57:41]} {[%emt 00:04:31]} Rxf4 {[%clk 00:19:32]} {[%emt 00:00:28]} 29.
b3 {[%clk 00:56:35]} {[%emt 00:01:38]} a4 {[%clk 00:18:09]} {[%emt 00:01:54]}
30. Re6 {[%clk 00:56:31]} {[%emt 00:00:33]} axb3 {[%clk 00:15:32]} {[%emt
00:03:07]} 31. axb3 {[%clk 00:57:00]} {[%emt 00:00:01]} c5 {[%clk 00:14:25]}
{[%emt 00:01:36]} 32. Rc6 {[%clk 00:57:12]} {[%emt 00:00:19]} c4 {[%clk
00:14:07]} {[%emt 00:00:48]} 33. bxc4 {[%clk 00:57:37]} {[%emt 00:00:05]} dxc4
{[%clk 00:14:35]} {[%emt 00:00:02]} 34. g3 {[%clk 00:57:25]} {[%emt 00:00:41]}
Rd4 {[%clk 00:14:32]} {[%emt 00:00:33]} 35. Kg2 {[%clk 00:56:00]} {[%emt
00:01:56]} Kg5 {[%clk 00:12:35]} {[%emt 00:02:27]} 36. Kf3 {[%clk 00:55:37]}
{[%emt 00:00:53]} Kf5 {[%clk 00:09:29]} {[%emt 00:03:36]} 37. Ke3 {[%clk
00:54:21]} {[%emt 00:01:46]} Re4+ {[%clk 00:05:03]} {[%emt 00:04:56]} 38. Kf3
{[%clk 00:54:39]} {[%emt 00:00:11]} Rd4 {[%clk 00:03:42]} {[%emt 00:01:52]} 39.
Ke3 {[%clk 00:53:51]} {[%emt 00:01:18]} Rd3+ {[%clk 00:02:52]} {[%emt
00:01:20]} 40. Ke2 {[%clk 00:54:09]} {[%emt 00:00:11]} Rd4 {[%clk 00:02:46]}
{[%emt 00:00:36]} 41. Ke3 {[%clk 00:54:13]} {[%emt 00:00:27]} 1/2-1/2

[Event "NJSK 2023 Jeugd B"]
[Site "Almelo, Netherlands"]
[Date "2023.05.06"]
[Round "7.4"]
[White "Van Egmond, Tom"]
[Black "Van Arendonk, Polle"]
[Result "0-1"]
[TimeControl "90min/40moves + 30min + 30sec/move"]
[WhiteElo "1767"]
[BlackElo "1772"]

1. d4 {[%clk 01:30:59]} {[%emt 00:00:01]} Nf6 {[%clk 01:30:57]} {[%emt
00:00:04]} 2. c4 {[%clk 01:31:26]} {[%emt 00:00:03]} g6 {[%clk 01:31:06]}
{[%emt 00:00:22]} 3. h4 {[%clk 01:31:52]} {[%emt 00:00:03]} c5 {[%clk
01:27:21]} {[%emt 00:04:15]} 4. d5 {[%clk 01:32:12]} {[%emt 00:00:10]} d6
{[%clk 01:27:31]} {[%emt 00:00:20]} 5. Nc3 {[%clk 01:32:20]} {[%emt 00:00:21]}
e6 {[%clk 01:27:26]} {[%emt 00:00:36]} 6. e4 {[%clk 01:32:01]} {[%emt
00:00:49]} exd5 {[%clk 01:27:51]} {[%emt 00:00:05]} 7. cxd5 {[%clk 01:30:24]}
{[%emt 00:02:07]} Qe7 {[%clk 01:24:22]} {[%emt 00:03:59]} 8. Qc2 {[%clk
01:25:08]} {[%emt 00:05:45]} Nbd7 {[%clk 01:20:35]} {[%emt 00:04:18]} 9. Be2
{[%clk 01:20:01]} {[%emt 00:05:37]} a6 {[%clk 01:10:38]} {[%emt 00:10:27]} 10.
a4 {[%clk 01:20:00]} {[%emt 00:00:31]} b6 {[%clk 01:10:51]} {[%emt 00:00:17]}
11. Nf3 {[%clk 01:15:28]} {[%emt 00:05:01]} Bg7 {[%clk 01:04:56]} {[%emt
00:06:25]} 12. Nd2 {[%clk 01:09:45]} {[%emt 00:06:14]} Rb8 {[%clk 01:00:06]}
{[%emt 00:05:21]} 13. f4 {[%clk 00:56:19]} {[%emt 00:13:55]} h5 {[%clk
00:56:44]} {[%emt 00:03:52]} 14. Nc4 {[%clk 00:48:39]} {[%emt 00:08:10]} Ng4
{[%clk 00:49:33]} {[%emt 00:07:40]} 15. Bxg4 {[%clk 00:47:48]} {[%emt
00:01:21]} hxg4 {[%clk 00:48:49]} {[%emt 00:01:14]} 16. g3 {[%clk 00:47:44]}
{[%emt 00:00:34]} Bxc3+ {[%clk 00:33:45]} {[%emt 00:15:35]} 17. bxc3 {[%clk
00:48:02]} {[%emt 00:00:12]} Nf6 {[%clk 00:32:45]} {[%emt 00:01:29]} 18. Kf2
{[%clk 00:32:48]} {[%emt 00:15:45]} O-O {[%clk 00:30:14]} {[%emt 00:03:01]} 19.
Re1 {[%clk 00:29:18]} {[%emt 00:04:00]} Re8 {[%clk 00:30:09]} {[%emt 00:00:35]}
20. e5 {[%clk 00:21:35]} {[%emt 00:08:13]} dxe5 {[%clk 00:23:39]} {[%emt
00:07:00]} 21. Rxe5 {[%clk 00:14:38]} {[%emt 00:07:26]} Qd7 {[%clk 00:23:42]}
{[%emt 00:00:28]} 22. Rxe8+ {[%clk 00:13:57]} {[%emt 00:01:11]} Qxe8 {[%clk
00:23:38]} {[%emt 00:00:34]} 23. Nd6 {[%clk 00:13:34]} {[%emt 00:00:52]} Qe7
{[%clk 00:22:37]} {[%emt 00:01:32]} 24. Nxc8 {[%clk 00:13:57]} {[%emt
00:00:07]} Rxc8 {[%clk 00:23:05]} {[%emt 00:00:01]} 25. c4 {[%clk 00:03:03]}
{[%emt 00:11:25]} Re8 {[%clk 00:20:14]} {[%emt 00:03:21]} 26. Ra2 {[%clk
00:01:16]} {[%emt 00:02:16]} Qe1+ {[%clk 00:19:01]} {[%emt 00:01:43]} 27. Kg2
{[%clk 00:01:46]} {[%emt 00:00:01]} Ne4 {[%clk 00:18:13]} {[%emt 00:01:17]} 28.
Qd3 {[%clk 00:01:02]} {[%emt 00:01:14]} Qxc1 {[%clk 00:17:17]} {[%emt
00:01:26]} 29. Re2 {[%clk 00:01:29]} {[%emt 00:00:03]} Nd6 {[%clk 00:16:29]}
{[%emt 00:01:19]} 30. Rxe8+ {[%clk 00:01:48]} {[%emt 00:00:10]} Nxe8 {[%clk
00:16:58]} {[%emt 00:00:02]} 31. d6 {[%clk 00:02:05]} {[%emt 00:00:13]} Nxd6
{[%clk 00:12:41]} {[%emt 00:04:46]} 32. Qxd6 {[%clk 00:02:34]} Qxc4 {[%clk
00:12:51]} {[%emt 00:00:21]} 33. Qd8+ {[%clk 00:01:44]} {[%emt 00:01:20]} Kg7
{[%clk 00:12:56]} {[%emt 00:00:24]} 34. Qe7 {[%clk 00:02:10]} {[%emt 00:00:04]}
Qe6 {[%clk 00:11:46]} {[%emt 00:01:40]} 35. Qd8 {[%clk 00:01:05]} {[%emt
00:01:36]} Qe4+ {[%clk 00:10:39]} {[%emt 00:01:37]} 36. Kh2 {[%clk 00:01:15]}
{[%emt 00:00:19]} Qe2+ {[%clk 00:10:46]} {[%emt 00:00:23]} 37. Kg1 {[%clk
00:01:38]} {[%emt 00:00:07]} Qf3 {[%clk 00:10:34]} {[%emt 00:00:43]} 38. Qc7
{[%clk 00:01:21]} {[%emt 00:00:47]} Qxg3+ {[%clk 00:10:41]} {[%emt 00:00:22]}
39. Kf1 {[%clk 00:01:40]} {[%emt 00:00:12]} Qf3+ {[%clk 00:10:42]} {[%emt
00:00:29]} 0-1

[Event "NJSK 2023 Jeugd B"]
[Site "Almelo, Netherlands"]
[Date "2023.05.06"]
[Round "7.5"]
[White "Blom, Rens"]
[Black "Guillaumond, Matthieu"]
[Result "1/2-1/2"]
[TimeControl "90min/40moves + 30min + 30sec/move"]
[WhiteElo "1747"]
[BlackElo "2010"]

1. c4 {[%clk 01:30:58]} {[%emt 00:00:03]} e6 {[%clk 01:30:57]} {[%emt
00:00:03]} 2. e4 {[%clk 01:31:22]} {[%emt 00:00:05]} d5 {[%clk 01:31:23]}
{[%emt 00:00:04]} 3. cxd5 {[%clk 01:31:48]} {[%emt 00:00:05]} exd5 {[%clk
01:31:48]} {[%emt 00:00:05]} 4. exd5 {[%clk 01:32:14]} {[%emt 00:00:03]} Nf6
{[%clk 01:32:10]} {[%emt 00:00:08]} 5. Bb5+ {[%clk 01:32:35]} {[%emt 00:00:09]}
Nbd7 {[%clk 01:32:31]} {[%emt 00:00:09]} 6. Nc3 {[%clk 01:32:58]} {[%emt
00:00:07]} a6 {[%clk 01:32:58]} {[%emt 00:00:04]} 7. Ba4 {[%clk 01:31:56]}
{[%emt 00:01:32]} b5 {[%clk 01:32:37]} {[%emt 00:00:51]} 8. Bb3 {[%clk
01:29:01]} {[%emt 00:03:25]} Bd6 {[%clk 01:30:55]} {[%emt 00:02:11]} 9. Qe2+
{[%clk 01:24:56]} {[%emt 00:04:34]} Qe7 {[%clk 01:30:53]} {[%emt 00:00:33]} 10.
d4 {[%clk 01:24:35]} {[%emt 00:00:52]} Bb7 {[%clk 01:27:45]} {[%emt 00:03:38]}
11. Bg5 {[%clk 01:15:00]} {[%emt 00:10:05]} Qxe2+ {[%clk 01:24:35]} {[%emt
00:03:39]} 12. Ngxe2 {[%clk 01:12:10]} {[%emt 00:03:21]} b4 {[%clk 01:21:27]}
{[%emt 00:03:38]} 13. Na4 {[%clk 01:12:22]} {[%emt 00:00:18]} Nxd5 {[%clk
01:20:23]} {[%emt 00:01:33]} 14. O-O {[%clk 01:11:12]} {[%emt 00:01:40]} O-O
{[%clk 01:18:49]} {[%emt 00:02:05]} 15. Rac1 {[%clk 01:10:25]} {[%emt
00:01:16]} Rfe8 {[%clk 01:15:00]} {[%emt 00:04:19]} 16. Rfe1 {[%clk 01:00:04]}
{[%emt 00:10:52]} h6 {[%clk 01:13:13]} {[%emt 00:02:16]} 17. Bd2 {[%clk
00:58:44]} {[%emt 00:01:50]} a5 {[%clk 01:11:25]} {[%emt 00:02:18]} 18. Nc5
{[%clk 00:55:55]} {[%emt 00:03:20]} Bxc5 {[%clk 00:51:44]} {[%emt 00:20:11]} 19.
dxc5 {[%clk 00:56:06]} {[%emt 00:00:18]} Ne5 {[%clk 00:50:40]} {[%emt
00:01:35]} 20. Nd4 {[%clk 00:35:27]} {[%emt 00:21:09]} Nd3 {[%clk 00:46:49]}
{[%emt 00:04:20]} 21. c6 {[%clk 00:34:54]} {[%emt 00:01:03]} Ba6 {[%clk
00:46:24]} {[%emt 00:00:56]} 22. Bxd5 {[%clk 00:34:11]} {[%emt 00:01:12]} Nxe1
{[%clk 00:44:58]} {[%emt 00:01:55]} 23. Bxe1 {[%clk 00:27:08]} {[%emt
00:07:35]} Rad8 {[%clk 00:43:51]} {[%emt 00:01:35]} 24. Bf3 {[%clk 00:24:33]}
{[%emt 00:03:06]} Rxd4 {[%clk 00:43:30]} {[%emt 00:00:51]} 25. a3 {[%clk
00:24:27]} {[%emt 00:00:37]} bxa3 {[%clk 00:42:12]} {[%emt 00:01:48]} 26. b3
{[%clk 00:19:45]} {[%emt 00:05:12]} Be2 {[%clk 00:39:04]} {[%emt 00:03:37]} 27.
Bxa5 {[%clk 00:19:05]} {[%emt 00:01:10]} Bxf3 {[%clk 00:39:12]} {[%emt
00:00:22]} 28. gxf3 {[%clk 00:19:27]} {[%emt 00:00:08]} Red8 {[%clk 00:37:00]}
{[%emt 00:02:42]} 29. Kg2 {[%clk 00:18:00]} {[%emt 00:01:58]} Rd1 {[%clk
00:37:06]} {[%emt 00:00:23]} 30. Rc2 {[%clk 00:17:59]} {[%emt 00:00:31]} R8d6
{[%clk 00:16:50]} {[%emt 00:20:45]} 31. Bxc7 {[%clk 00:17:16]} {[%emt
00:01:14]} R6d2 {[%clk 00:14:51]} {[%emt 00:02:30]} 32. Rc4 {[%clk 00:12:45]}
{[%emt 00:05:01]} Rd4 {[%clk 00:10:05]} {[%emt 00:05:16]} 33. Rxd4 {[%clk
00:12:47]} {[%emt 00:00:27]} Rxd4 {[%clk 00:10:07]} {[%emt 00:00:28]} 34. Be5
{[%clk 00:13:01]} {[%emt 00:00:17]} Rd1 {[%clk 00:09:06]} {[%emt 00:01:31]} 35.
b4 {[%clk 00:12:05]} {[%emt 00:01:26]} f6 {[%clk 00:06:40]} {[%emt 00:02:56]}
36. b5 {[%clk 00:09:53]} {[%emt 00:02:41]} fxe5 {[%clk 00:04:22]} {[%emt
00:02:48]} 37. c7 {[%clk 00:08:41]} {[%emt 00:01:43]} Rc1 {[%clk 00:03:02]}
{[%emt 00:01:49]} 38. b6 {[%clk 00:09:06]} {[%emt 00:00:06]} a2 {[%clk
00:02:50]} {[%emt 00:00:42]} 39. b7 {[%clk 00:09:27]} {[%emt 00:00:08]} a1=Q
{[%clk 00:02:02]} {[%emt 00:01:18]} 40. c8=Q+ {[%clk 00:08:53]} {[%emt
00:01:05]} Rxc8 {[%clk 00:00:50]} {[%emt 00:01:41]} 41. bxc8=Q+ {[%clk
00:09:17]} {[%emt 00:00:06]} Kf7 {[%clk 00:00:34]} {[%emt 00:00:45]} 42. Qd7+
{[%clk 00:08:24]} {[%emt 00:01:24]} Kg6 {[%clk 00:28:51]} {[%emt 00:02:13]} 43.
Qe6+ {[%clk 00:36:52]} {[%emt 00:02:03]} Kh7 {[%clk 00:28:12]} {[%emt
00:01:08]} 44. Qf5+ {[%clk 00:37:03]} {[%emt 00:00:20]} Kg8 {[%clk 00:28:10]}
{[%emt 00:00:31]} 45. Qe6+ {[%clk 00:36:20]} {[%emt 00:01:13]} Kf8 {[%clk
00:28:03]} {[%emt 00:00:37]} 46. Qc8+ {[%clk 00:36:43]} {[%emt 00:00:08]} Kf7
{[%clk 00:27:50]} {[%emt 00:00:42]} 1/2-1/2